fUSD/lending_fUSD_20260517
["ID","MTS","AMOUNT","RATE_DAILY","PERIOD"]
[422495334,1778998238000,-154.0,0.00021,2]
[422495323,1778998238000,-208.0,0.00021,2]
[422495332,1778998238000,-157.0,0.00021,2]
[422495338,1778998238000,-171.30607919,0.00021,2]
[422495330,1778998238000,-273.0,0.00021,2]
[422495325,1778998238000,-158.0,0.00021,2]
[422495328,1778998238000,-1166.22,0.00021,2]
[422495343,1778998238000,-15646.80091094,0.00021293,2]
[422495345,1778998238000,-507.0,0.00021412,2]
[422495321,1778998238000,-162.0,0.00021,2]
[422495361,1778998238000,-208.0,0.00022,2]
[422495365,1778998238000,-273.0,0.00022,2]
[422495340,1778998238000,-17626.48919726,0.00021243,2]
[422495370,1778998238000,-154.0,0.00022,2]
[422495353,1778998238000,-752.65241536,0.00021918,2]
[422495351,1778998238000,-21250.56817186,0.00021864,2]
[422495357,1778998238000,-15646.80091094,0.00021977,2]
[422495349,1778998238000,-225.15420585,0.000215,2]
[422495363,1778998238000,-158.0,0.00022,2]
[422495347,1778998238000,-48424.48603759,0.000215,2]
[422495359,1778998238000,-162.0,0.00022,2]
[422495355,1778998238000,-4609.0,0.0002196,2]
[422495452,1778998239000,-2000.0,0.00024762,2]
[422495444,1778998239000,-752.65241536,0.00024658,2]
[422495450,1778998239000,-186.47,0.00024741,2]
[422495460,1778998239000,-205.36624986,0.0002499,2]
[422495448,1778998239000,-163.6,0.00024736,2]
[422495446,1778998239000,-21250.56817186,0.00024659,2]
[422495442,1778998239000,-1000.0,0.00024658,2]
[422495428,1778998239000,-1826.0,0.00024156,2]
[422495430,1778998239000,-2391.46,0.00024174,2]
[422495438,1778998239000,-341.1,0.00024324,2]
[422495432,1778998239000,-791.62,0.00024174,2]
[422495436,1778998239000,-3753.96495443,0.0002421,2]
[422495434,1778998239000,-1705.81,0.00024174,2]
[422495426,1778998239000,-221.12,0.00024137,2]
[422495424,1778998239000,-165.92,0.00024111,2]
[422495462,1778998239000,-500.0,0.00024999,2]
[422495440,1778998239000,-471.59,0.00024658,2]
[422495454,1778998239000,-369.25199798,0.0002481,2]
[422495472,1778998239000,-170.0,0.00025,2]
[422495456,1778998239000,-352.80491067,0.000249,2]
[422495498,1778998239000,-4797.62160333,0.00025,2]
[422495495,1778998239000,-1533193.03101709,0.00025,2]
[422495464,1778998239000,-500.0,0.00024999,2]
[422495481,1778998239000,-502.0383,0.00025,2]
[422495483,1778998239000,-16614.7028,0.00025,2]
[422495485,1778998239000,-7063.72083826,0.00025,21]
[422495491,1778998239000,-541.96263774,0.00025,5]
[422495489,1778998239000,-56617.88213438,0.00025,7]
[422495493,1778998239000,-2279.78960302,0.00025,2]
[422495487,1778998239000,-461.95861035,0.00025,2]
[422495476,1778998239000,-292.5776326,0.00025,2]
[422495474,1778998239000,-226.0,0.00025,2]
[422495470,1778998239000,-214.54593545,0.00024999,2]
[422495468,1778998239000,-500.0,0.00024999,2]
[422495458,1778998239000,-161.24934823,0.000249,2]
[422495466,1778998239000,-500.0,0.00024999,2]
[422495478,1778998239000,-156.16,0.00025,2]
[422495571,1778998240000,-285.0,0.00025398,2]
[422495568,1778998240000,-200.952461,0.00025088,14]
[422495569,1778998240000,-161.24934823,0.00025246,2]
[422495566,1778998240000,-35687.0,0.00025,2]
[422495565,1778998240000,-160.0,0.00025,7]
[422495561,1778998240000,-14958.77592352,0.00022662,2]
[422495564,1778998240000,-2000.0,0.00025,2]
[422495562,1778998240000,-47523.90483314,0.00025,2]
[422495560,1778998240000,-688.02498742,0.00022662,2]
[422495570,1778998240000,-152.0,0.00025297,3]
[422495563,1778998240000,-215.0785988,0.00025,7]
[422495573,1778998240000,-1520.99735626,0.000254,2]
[422495567,1778998240000,-222.828829,0.00025088,14]
[422495574,1778998240000,-5000.0,0.000254,2]
[422495585,1778998240000,-500.0,0.00025499,2]
[422495583,1778998240000,-407.36389492,0.00025499,2]
[422495582,1778998240000,-500.0,0.00025499,2]
[422495584,1778998240000,-500.0,0.00025499,2]
[422495580,1778998240000,-500.0,0.00025499,2]
[422495586,1778998240000,-500.0,0.00025499,2]
[422495572,1778998240000,-1001.59004875,0.00025399,2]
[422495579,1778998240000,-151.0,0.00025497,7]
[422495575,1778998240000,-1511.87138178,0.000254,2]
[422495577,1778998240000,-221.12,0.00025408,2]
[422495581,1778998240000,-366.6891395,0.00025499,2]
[422495578,1778998240000,-105153.02640453,0.0002545,2]
[422495576,1778998240000,-5530.0,0.000254,3]
[422495603,1778998241000,-2000.0,0.000256,2]
[422495588,1778998241000,-614.03382431,0.00025499,2]
[422495587,1778998241000,-574.23113137,0.00025499,2]
[422495589,1778998241000,-500.0,0.00025499,2]
[422495604,1778998241000,-329331.90519534,0.000256,2]
[422495597,1778998241000,-213.47505599,0.00025581,2]
[422495592,1778998241000,-500.0,0.00025499,2]
[422495594,1778998241000,-2500000.0,0.000255,2]
[422495591,1778998241000,-500.0,0.00025499,2]
[422495596,1778998241000,-10000.0,0.000255,2]
[422495593,1778998241000,-500.0,0.00025499,2]
[422495601,1778998241000,-300.0,0.00025599,10]
[422495602,1778998241000,-8909.9468,0.000256,2]
[422495598,1778998241000,-205.36624986,0.0002559,2]
[422495590,1778998241000,-500.0,0.00025499,2]
[422495600,1778998241000,-161.24934823,0.00025591,2]
[422495595,1778998241000,-834.28,0.000255,7]
[422495599,1778998241000,-21250.56817186,0.00025591,2]
[422495613,1778998243000,-39304.08780726,0.000256,2]
[422495614,1778998243000,-307.24117631,0.000256,2]
[422495615,1778998243000,-817.71813489,0.000256,2]
[422495623,1778998254000,-4145.11,0.000256,2]
[422495628,1778998254000,-1123.73350908,0.000256,2]
[422495626,1778998254000,-152.0,0.00020245,2]
[422495627,1778998254000,-821.57817663,0.000256,2]
[422495624,1778998254000,-15646.80091094,0.00023346,2]
[422495625,1778998254000,-23139.01399559,0.000256,2]
[422495629,1778998266000,-219.46,0.0001817,2]
[422495630,1778998267000,250.0,0.00019987,2]
[422495631,1778998275000,152.0,0.00020245,2]
[422495632,1778998286000,150.0,0.00019624,2]
[422495634,1778998319000,3176.0,0.0002,2]
[422495635,1778998327000,210.05888933,0.00019585,2]
[422495636,1778998330000,151.0,0.00019585,2]
[422495637,1778998331000,151.0,0.00019585,2]
[422495638,1778998332000,404.5,0.00020381,2]
[422495641,1778998332000,203.54888933,0.00016438,2]
[422495639,1778998332000,404.5,0.0001841,2]
[422495642,1778998332000,151.0,0.00019585,2]
[422495643,1778998332000,151.0,0.00019585,2]
[422495644,1778998332000,151.0,0.00019585,2]
[422495640,1778998332000,200.95111067,0.00016438,2]
[422495645,1778998333000,151.0,0.00019585,2]
[422495646,1778998333000,151.0,0.00019585,2]
[422495648,1778998334000,151.0,0.00019585,2]
[422495650,1778998334000,151.0,0.00019585,2]
[422495649,1778998334000,151.0,0.00019585,2]
[422495647,1778998334000,151.0,0.00019585,2]
[422495654,1778998335000,151.0,0.00019585,2]
[422495653,1778998335000,151.0,0.00019585,2]
[422495652,1778998335000,151.0,0.00019585,2]
[422495651,1778998335000,151.0,0.00019585,2]
[422495657,1778998336000,500.0,0.00019585,2]
[422495656,1778998336000,151.0,0.00019585,2]
[422495655,1778998336000,151.0,0.00019585,2]
[422495661,1778998337000,151.0,0.00019585,2]
[422495660,1778998337000,500.0,0.00019585,2]
[422495659,1778998337000,151.0,0.00019585,2]
[422495658,1778998337000,151.0,0.00019585,2]
[422495662,1778998338000,500.0,0.00019585,2]
[422495663,1778998338000,151.0,0.00019585,2]
[422495667,1778998339000,500.0,0.00019585,2]
[422495664,1778998339000,151.0,0.00019585,2]
[422495666,1778998339000,151.0,0.00019585,2]
[422495665,1778998339000,500.0,0.00019585,2]
[422495670,1778998340000,521.12469485,0.00019585,2]
[422495668,1778998340000,84.01,0.00019585,2]
[422495669,1778998340000,66.99,0.00019585,2]
[422495671,1778998340000,151.0,0.00019585,2]
[422495673,1778998341000,151.0,0.00019585,2]
[422495672,1778998341000,151.0,0.00019585,2]
[422495674,1778998342000,151.0,0.00019585,2]
[422495676,1778998343000,151.0,0.00019585,2]
[422495675,1778998343000,151.0,0.00019585,2]
[422495677,1778998344000,151.0,0.00019585,2]
[422495678,1778998347000,256.52,0.00020245,2]
[422495679,1778998349000,2080.17592889,0.00019585,2]
[422495681,1778998350000,53.17163285,0.00020681,2]
[422495682,1778998350000,2183.78507563,0.00020681,2]
[422495680,1778998350000,2157.14243826,0.00020133,2]
[422495683,1778998361000,271.54,0.0001995,2]
[422495684,1778998361000,181.02,0.00021,2]
[422495685,1778998385000,150.0,0.000209,2]
[422495686,1778998426000,162.92,0.0001995,2]
[422495688,1778998502000,153.0,0.0002,2]
[422495689,1778998504000,153.0,0.00021,2]
[422495690,1778998509000,150.0,0.000209,2]
[422495691,1778998527000,177.0,0.00025968,120]
[422495692,1778998563000,158.0,0.0002,2]
[422495693,1778998564000,158.0,0.00021,2]
[422495694,1778998602000,485.0,0.0002,2]
[422495695,1778998603000,485.0,0.00021,2]
[422495696,1778998619000,158.21,0.00019083,2]
[422495699,1778998632000,867.0,0.0001841,2]
[422495698,1778998632000,867.0,0.00016438,2]
[422495697,1778998632000,867.0,0.00020381,2]
[422495700,1778998637000,462.44,0.00028946,120]
[422495701,1778998646000,500.0,0.00017999,2]
[422495703,1778998654000,480.2,0.0002,2]
[422495702,1778998654000,304.8,0.0002,2]
[422495704,1778998655000,785.0,0.00021,2]
[422495705,1778998657000,152.0,0.00020136,2]
[422495706,1778998705000,156.88,0.00028521,120]
[422495707,1778998719000,198.0,0.0002,2]
[422495708,1778998720000,198.0,0.00021,2]
[422495709,1778998769000,176.0,0.0002,2]
[422495710,1778998771000,176.0,0.00021,2]
[422495711,1778998851000,504.0,0.0002,2]
[422495714,1778998852000,150.0,0.00021,2]
[422495713,1778998852000,504.0,0.00021,2]
[422495712,1778998852000,150.0,0.0002,2]
[422495715,1778998922000,500.0,0.00017999,2]
[422495717,1778998932000,1283.2,0.00020381,2]
[422495720,1778998932000,657.59,0.00016438,2]
[422495719,1778998932000,625.61,0.00016438,2]
[422495718,1778998932000,1283.2,0.0001841,2]
[422495721,1778998934000,245.0,0.0002,2]
[422495722,1778998935000,245.0,0.00021,2]
[422495723,1778998978000,180.0,0.0002,2]
[422495724,1778998979000,180.0,0.00021,2]
[422495725,1778998980000,165.79,0.00022,120]
[422495726,1778998993000,639.86,0.00028946,120]
[422495727,1778999018000,220.0,0.0002,2]
[422495728,1778999020000,220.0,0.00021,2]
[422495729,1778999051000,247.5,0.00025077,120]
[422495730,1778999052000,247.5,0.00027863,120]
[422495731,1778999056000,439.23219205,0.00020338,2]
[422495732,1778999057000,175.81,0.00011338,2]
[422495733,1778999083000,2000.0,0.00027753,120]
[422495734,1778999100000,676.0,0.0002,2]
[422495735,1778999101000,676.0,0.00021,2]
[422495736,1778999122000,169.29,0.00016712,2]
[422495739,1778999208000,159.15,0.00023,120]
[422495738,1778999208000,190.31,0.000271,120]
[422495740,1778999232000,962.4,0.00020381,2]
[422495741,1778999232000,962.4,0.0001841,2]
[422495742,1778999232000,962.4,0.00016438,2]
[422495744,1778999285000,1526.48,0.0002,2]
[422495743,1778999285000,591.52,0.0002,2]
[422495745,1778999340000,1000.0,0.00030135,120]
[422495746,1778999376000,620.65757693,0.00030136,120]
[422495747,1778999402000,150.0,0.0002058,2]
[422495748,1778999408000,150.0,0.0002058,2]
[422495749,1778999413000,150.0,0.0002058,2]
[422495750,1778999419000,150.0,0.0002058,2]
[422495751,1778999425000,150.0,0.0002058,2]
[422495752,1778999430000,150.0,0.0002058,2]
[422495768,1778999432000,-485.0,0.00022,2]
[422495771,1778999432000,-176.0,0.00022,2]
[422495773,1778999432000,-245.0,0.00022,2]
[422495765,1778999432000,-1100.0,0.00021999,2]
[422495767,1778999432000,-158.0,0.00022,2]
[422495776,1778999432000,-676.0,0.00022,2]
[422495766,1778999432000,-153.0,0.00022,2]
[422495769,1778999432000,-785.0,0.00022,2]
[422495764,1778999432000,-1001.59004875,0.00021999,2]
[422495758,1778999432000,-35633.65081683,0.00021119,2]
[422495761,1778999432000,-150.0,0.0002181,2]
[422495763,1778999432000,-453.0,0.00021918,3]
[422495762,1778999432000,-229.97,0.00021893,2]
[422495760,1778999432000,-500.0,0.00021499,2]
[422495775,1778999432000,-220.0,0.00022,2]
[422495759,1778999432000,-2537.05039193,0.00021223,2]
[422495755,1778999432000,-7.02299998,0.00021118,2]
[422495757,1778999432000,-300.0,0.00021118,2]
[422495754,1778999432000,-292.97700002,0.00021118,2]
[422495756,1778999432000,-1200.0,0.00021118,2]
[422495774,1778999432000,-180.0,0.00022,2]
[422495770,1778999432000,-198.0,0.00022,2]
[422495777,1778999432000,-1852.42,0.00022046,2]
[422495799,1778999432000,-244.41148704,0.00022879,2]
[422495800,1778999432000,-378.71365915,0.00022879,2]
[422495798,1778999432000,-165.13,0.00022836,2]
[422495772,1778999432000,-504.0,0.00022,2]
[422495796,1778999432000,-205.18008873,0.00022801,2]
[422495794,1778999432000,-2237.935458,0.00022801,2]
[422495795,1778999432000,-797.59445327,0.00022801,2]
[422495792,1778999432000,-2537.05039193,0.00022496,2]
[422495790,1778999432000,-856.97,0.0002248,2]
[422495781,1778999432000,-9288.22060458,0.00022135,2]
[422495780,1778999432000,-463.15939542,0.00022135,2]
[422495797,1778999432000,-150.99,0.00022801,2]
[422495785,1778999432000,-247.5,0.00022291,2]
[422495789,1778999432000,-1364.9,0.00022466,2]
[422495783,1778999432000,-2000.0,0.00022202,2]
[422495782,1778999432000,-2044.54,0.00022161,2]
[422495778,1778999432000,-4824.81885816,0.00022135,2]
[422495779,1778999432000,-175.18114184,0.00022135,2]
[422495787,1778999432000,-9999.99,0.00022407,2]
[422495786,1778999432000,-962.4,0.00022353,2]
[422495788,1778999432000,-753.3,0.00022466,2]
[422495784,1778999432000,-175.81,0.00022232,2]
[422495801,1778999436000,150.0,0.0002058,2]
[422495823,1778999438000,-299.99,0.00022973,7]
[422495818,1778999438000,-730.200385,0.0002292,2]
[422495828,1778999438000,-198.0,0.00023,2]
[422495819,1778999438000,-1161.0645719,0.0002292,2]
[422495825,1778999438000,-158.0,0.00023,2]
[422495821,1778999438000,-420.0,0.00022969,2]
[422495830,1778999438000,-504.0,0.00023,2]
[422495829,1778999438000,-176.0,0.00023,2]
[422495832,1778999438000,-245.0,0.00023,2]
[422495840,1778999438000,-777.10073319,0.00023,2]
[422495842,1778999438000,-290.84887371,0.00023,2]
[422495834,1778999438000,-180.0,0.00023,2]
[422495845,1778999438000,-1244.39231501,0.00023,2]
[422495827,1778999438000,-785.0,0.00023,2]
[422495820,1778999438000,-10514.18512473,0.0002292,2]
[422495876,1778999438000,-2537.05039193,0.0002377,2]
[422495826,1778999438000,-485.0,0.00023,2]
[422495838,1778999438000,-676.0,0.00023,2]
[422495806,1778999438000,-519.7088996,0.00022879,2]
[422495808,1778999438000,-424.19210303,0.00022879,2]
[422495807,1778999438000,-302.97385118,0.00022879,2]
[422495809,1778999438000,-173.15411089,0.000229,2]
[422495815,1778999438000,-522.17933916,0.000229,2]
[422495822,1778999438000,-156.88,0.00022973,2]
[422495817,1778999438000,-1733.58218583,0.0002292,2]
[422495811,1778999438000,-7301.41972174,0.000229,2]
[422495814,1778999438000,-502.0383,0.000229,2]
[422495810,1778999438000,-426.79664891,0.000229,2]
[422495816,1778999438000,-14064.20232187,0.0002292,2]
[422495813,1778999438000,-6438.4089581,0.000229,2]
[422495824,1778999438000,-153.0,0.00023,2]
[422495812,1778999438000,-2274.92336036,0.000229,2]
[422495836,1778999438000,-220.0,0.00023,2]
[422495879,1778999438000,-900.0,0.00023801,2]
[422495848,1778999438000,-953.65807809,0.00023,2]
[422495892,1778999438000,-284.63035055,0.00023921,2]
[422495891,1778999438000,-500.0,0.00023919,2]
[422495893,1778999438000,-151.0,0.00023928,7]
[422495889,1778999438000,-1004.62,0.0002388,2]
[422495890,1778999438000,-2100.0,0.000239,8]
[422495887,1778999438000,-28203.2345893,0.00023831,2]
[422495888,1778999438000,-2000.0,0.0002385,2]
[422495885,1778999438000,-11016.55574834,0.00023831,2]
[422495884,1778999438000,-10935.58511844,0.00023831,2]
[422495883,1778999438000,-876.74088357,0.00023831,2]
[422495850,1778999438000,-522.17933916,0.00023,2]
[422495882,1778999438000,-1520.99735626,0.00023831,2]
[422495880,1778999438000,-2377.0,0.00023803,2]
[422495881,1778999438000,-5000.0,0.00023831,2]
[422495875,1778999438000,-197.07125807,0.0002377,21]
[422495878,1778999438000,-1600.0,0.000238,8]
[422495867,1778999438000,-400.0,0.000235,8]
[422495854,1778999438000,-522.17933916,0.000231,2]
[422495852,1778999438000,-1680.0,0.00023078,2]
[422495886,1778999438000,-6189.91786567,0.00023831,2]
[422495866,1778999438000,-308.63,0.00023431,5]
[422495872,1778999438000,-1200.0,0.000237,8]
[422495855,1778999438000,-28203.2345893,0.00023224,2]
[422495869,1778999438000,-3807.6037,0.000236,2]
[422495864,1778999438000,-2080.17592889,0.00023386,2]
[422495868,1778999438000,-28203.2345893,0.00023527,2]
[422495870,1778999438000,-800.0,0.000236,8]
[422495860,1778999438000,-151.0,0.00023386,2]
[422495874,1778999438000,-2500.0,0.00023703,2]
[422495862,1778999438000,-151.0,0.00023386,2]
[422495858,1778999438000,-151.0,0.00023386,2]
[422495871,1778999438000,-300.19796051,0.0002369,2]
[422495907,1778999439000,-500.0,0.0002393,2]
[422495915,1778999439000,-158.56767645,0.00024,2]
[422495906,1778999439000,-500.0,0.0002393,2]
[422495910,1778999439000,-500.0,0.0002393,2]
[422495911,1778999439000,-3000.0,0.0002393,2]
[422495912,1778999439000,-1500000.0,0.00023931,2]
[422495914,1778999439000,-153.0,0.00024,2]
[422495926,1778999439000,-6189.91786563,0.00024174,2]
[422495909,1778999439000,-500.0,0.0002393,2]
[422495913,1778999439000,-2157.14243826,0.00023934,2]
[422495908,1778999439000,-500.0,0.0002393,2]
[422495919,1778999439000,-176.0,0.00024,2]
[422495899,1778999439000,-500.0,0.0002393,2]
[422495902,1778999439000,-500.0,0.0002393,2]
[422495904,1778999439000,-517.33252803,0.0002393,2]
[422495900,1778999439000,-500.0,0.0002393,2]
[422495901,1778999439000,-500.0,0.0002393,2]
[422495903,1778999439000,-500.0,0.0002393,2]
[422495898,1778999439000,-500.0,0.0002393,2]
[422495895,1778999439000,-500.0,0.0002393,2]
[422495896,1778999439000,-500.0,0.0002393,2]
[422495897,1778999439000,-500.0,0.0002393,2]
[422495894,1778999439000,-151.0,0.00023928,7]
[422495905,1778999439000,-500.0,0.0002393,2]
[422495925,1778999439000,-6189.91786563,0.00024002,2]
[422495942,1778999439000,-1488809.60636505,0.00024279,2]
[422495924,1778999439000,-676.0,0.00024,2]
[422495920,1778999439000,-504.0,0.00024,2]
[422495943,1778999439000,-80902.37335018,0.00024279,2]
[422495944,1778999439000,-718.62561967,0.00024279,2]
[422495941,1778999439000,-284.63035055,0.00024269,2]
[422495935,1778999439000,-7944.53389954,0.000242,2]
[422495937,1778999439000,-159.32971315,0.000242,2]
[422495934,1778999439000,-423.83139422,0.000242,2]
[422495932,1778999439000,-153.47,0.00024197,2]
[422495930,1778999439000,-1263.59,0.00024174,2]
[422495936,1778999439000,-2267.80707266,0.000242,2]
[422495933,1778999439000,-150.0,0.000242,2]
[422495940,1778999439000,-2000.0,0.00024219,2]
[422495931,1778999439000,-2900.68,0.00024174,2]
[422495927,1778999439000,-455.28,0.00024174,2]
[422495918,1778999439000,-198.0,0.00024,2]
[422495916,1778999439000,-485.0,0.00024,2]
[422495922,1778999439000,-180.0,0.00024,2]
[422495917,1778999439000,-785.0,0.00024,2]
[422495921,1778999439000,-245.0,0.00024,2]
[422495938,1778999439000,-313.54230078,0.00024212,2]
[422495928,1778999439000,-209.4,0.00024174,2]
[422495939,1778999439000,-500.0,0.00024219,2]
[422495929,1778999439000,-3531.97,0.00024174,2]
[422495923,1778999439000,-220.0,0.00024,2]
[422495958,1778999440000,-1000.0,0.00024658,2]
[422495956,1778999440000,-200.952461,0.00024598,14]
[422495962,1778999440000,-477.99,0.00024739,2]
[422495960,1778999440000,-6189.91786563,0.00024688,2]
[422495957,1778999440000,-850.76,0.00024658,2]
[422495965,1778999440000,-6189.91786563,0.00024859,2]
[422495955,1778999440000,-477.99,0.00024597,2]
[422495954,1778999440000,-477.99,0.00024597,2]
[422495952,1778999440000,-6189.91786563,0.00024516,2]
[422495950,1778999440000,-2000.0,0.00024455,2]
[422495947,1778999440000,-962.4,0.00024324,2]
[422495949,1778999440000,-162.09,0.00024448,2]
[422495953,1778999440000,-272.781575,0.00024529,14]
[422495945,1778999440000,-929569.3946651,0.00024279,2]
[422495948,1778999440000,-6189.91786563,0.00024345,2]
[422495951,1778999440000,-2236.95670848,0.00024482,2]
[422495959,1778999440000,-500.0,0.00024658,2]
[422495964,1778999440000,-500.0,0.00024795,2]
[422495961,1778999440000,-165.13,0.0002472,2]
[422495946,1778999440000,-1612.97,0.000243,7]
[422495966,1778999440000,-477.99,0.0002488,2]
[422495963,1778999440000,-477.99,0.00024786,2]
[422495983,1778999440000,-694.60760533,0.00025,2]
[422495984,1778999440000,-477.99,0.00025022,2]
[422495982,1778999440000,-231.33427008,0.00025,2]
[422495981,1778999440000,-183.40972659,0.00025,2]
[422495979,1778999440000,-518.7533538,0.00025,2]
[422495977,1778999440000,-209.00224942,0.00025,2]
[422495976,1778999440000,-790.0,0.00025,2]
[422495978,1778999440000,-186.61900104,0.00025,2]
[422495980,1778999440000,-251.79799207,0.00025,2]
[422495970,1778999440000,-587.0,0.00024982,2]
[422495971,1778999440000,-500.0,0.00024999,2]
[422495973,1778999440000,-498.86,0.00024999,2]
[422495974,1778999440000,-164.0,0.00025,2]
[422495969,1778999440000,-2000.0,0.00024978,2]
[422495968,1778999440000,-477.99,0.00024975,2]
[422495972,1778999440000,-500.0,0.00024999,2]
[422495975,1778999440000,-486.0,0.00025,2]
[422495967,1778999440000,-222.828829,0.00024964,14]
[422496030,1778999441000,-151.0,0.00025473,2]
[422496027,1778999441000,-2219.541369,0.00025473,2]
[422496022,1778999441000,-250.717475,0.00025473,2]
[422496020,1778999441000,-262.597918,0.00025473,2]
[422496019,1778999441000,-262.597918,0.00025473,2]
[422496024,1778999441000,-250.717475,0.00025473,2]
[422496023,1778999441000,-250.717475,0.00025473,2]
[422496021,1778999441000,-250.717475,0.00025473,2]
[422496025,1778999441000,-135208.0886846,0.00025473,2]
[422496028,1778999441000,-151.0,0.00025473,2]
[422496032,1778999441000,-151.0,0.00025473,2]
[422496026,1778999441000,-2219.541369,0.00025473,2]
[422496036,1778999441000,-659.567732,0.00025473,2]
[422496041,1778999441000,-42534.6667882,0.00025473,2]
[422496042,1778999441000,-500.0,0.00025473,2]
[422496043,1778999441000,-500.0,0.00025473,2]
[422496031,1778999441000,-2219.541369,0.00025473,2]
[422496033,1778999441000,-210.243499,0.00025473,2]
[422496035,1778999441000,-165.612933,0.00025473,2]
[422496038,1778999441000,-659.567732,0.00025473,2]
[422496037,1778999441000,-659.567732,0.00025473,2]
[422496040,1778999441000,-659.567732,0.00025473,2]
[422496029,1778999441000,-2219.541369,0.00025473,2]
[422496039,1778999441000,-151.0,0.00025473,2]
[422496044,1778999441000,-500.0,0.00025473,2]
[422496048,1778999441000,-500.0,0.00025473,2]
[422496047,1778999441000,-500.0,0.00025473,2]
[422496045,1778999441000,-500.0,0.00025473,2]
[422496034,1778999441000,-151.0,0.00025473,2]
[422496018,1778999441000,-262.597918,0.00025473,2]
[422496007,1778999441000,-3849.3894632,0.00025473,2]
[422496013,1778999441000,-151.0,0.00025473,2]
[422495991,1778999441000,-477.99,0.00025164,2]
[422495992,1778999441000,-477.99,0.00025164,2]
[422495986,1778999441000,-2319.72410669,0.0002503,2]
[422495990,1778999441000,-35687.0,0.000251,2]
[422495989,1778999441000,-2537.05039193,0.00025043,2]
[422495988,1778999441000,-6189.91786563,0.0002503,2]
[422495994,1778999441000,-279.0,0.00025198,2]
[422496004,1778999441000,-6189.91786563,0.00025373,2]
[422495997,1778999441000,-510.47,0.00025201,2]
[422495996,1778999441000,-215.0,0.00025198,2]
[422495998,1778999441000,-6189.91786563,0.00025202,2]
[422496002,1778999441000,-105153.02640453,0.0002535,2]
[422495993,1778999441000,-900.0,0.00025171,2]
[422496015,1778999441000,-153.49181,0.00025473,2]
[422496001,1778999441000,-477.99,0.00025306,2]
[422495995,1778999441000,-150.0,0.00025198,2]
[422496003,1778999441000,-477.99,0.00025353,2]
[422496000,1778999441000,-169.29,0.00025273,2]
[422496017,1778999441000,-262.597918,0.00025473,2]
[422496006,1778999441000,-8053.1754334,0.00025473,2]
[422496005,1778999441000,-477.99,0.00025447,2]
[422496008,1778999441000,-14961.2872907,0.00025473,2]
[422496016,1778999441000,-170.541062,0.00025473,2]
[422496012,1778999441000,-151.0,0.00025473,2]
[422496010,1778999441000,-503015.6768944,0.00025473,2]
[422496014,1778999441000,-151.0,0.00025473,2]
[422496011,1778999441000,-151.0,0.00025473,2]
[422496009,1778999441000,-58842.1288116,0.00025473,2]
[422495999,1778999441000,-2351.0,0.00025219,2]
[422496046,1778999441000,-500.0,0.00025473,2]
[422496053,1778999441000,-500.0,0.00025473,2]